fUSD/lending_fUSD_20250716
["ID","MTS","AMOUNT","RATE_DAILY","PERIOD"]
[372520830,1752669075863,-814.63,0.00022054,2]
[372520831,1752669075874,-1078.32,0.00022054,2]
[372520832,1752669075884,-2463.62,0.00022054,2]
[372520833,1752669075895,-1613.46,0.00022054,2]
[372520834,1752669075905,-6577.49,0.00022054,2]
[372520835,1752669075915,-3184.25,0.00022054,2]
[372520836,1752669075926,-641.07,0.00022054,2]
[372520837,1752669075936,-1547.14,0.00022054,2]
[372520838,1752669075947,-595.78,0.00022054,2]
[372520839,1752669075957,-460.0,0.00022054,2]
[372520840,1752669075968,-460.0,0.00022054,2]
[372520841,1752669075980,-572.52,0.00022054,2]
[372520842,1752669075990,-3148.56,0.00022054,2]
[372520843,1752669076001,-460.0,0.00022054,2]
[372520844,1752669076011,-1659.92,0.00022054,2]
[372520845,1752669076022,-1824.23,0.00022054,2]
[372520846,1752669076032,-1450.37,0.00022054,2]
[372520847,1752669076042,-460.0,0.00022054,2]
[372520848,1752669076053,-621.02,0.00022054,2]
[372520849,1752669076063,-739.34,0.00022054,2]
[372520850,1752669076074,-460.0,0.00022054,2]
[372520851,1752669076086,-9974.04,0.00022054,2]
[372520852,1752669076096,-792.81,0.00022054,2]
[372520853,1752669076106,-460.0,0.00022054,2]
[372520854,1752669076117,-582.91,0.00022054,2]
[372520855,1752669076127,-882.84,0.00022054,2]
[372520856,1752669076139,-2241.11,0.00022054,2]
[372520857,1752669076154,-2538.05,0.00022054,2]
[372520858,1752669076167,-460.0,0.00022054,2]
[372520859,1752669076186,-460.0,0.00022054,2]
[372520860,1752669076207,-508.1,0.00022054,2]
[372520861,1752669076228,-460.0,0.00022054,2]
[372520862,1752669076238,-2777.01,0.00022054,2]
[372520863,1752669076250,-460.0,0.00022054,2]
[372520864,1752669076260,-460.0,0.00022054,2]
[372520865,1752669076271,-460.0,0.00022054,2]
[372520866,1752669076282,-460.0,0.00022054,2]
[372520867,1752669076293,-460.0,0.00022054,2]
[372520868,1752669076304,-460.0,0.00022054,2]
[372520869,1752669076315,-460.0,0.00022054,2]
[372520870,1752669076326,-2464.49,0.00022054,2]
[372520871,1752669076337,-460.0,0.00022054,2]
[372520872,1752669076347,-877.21,0.00022054,2]
[372520873,1752669076357,-503.79170895,0.00022054,2]
[372520874,1752669076368,-1342.03,0.00022054,2]
[372520875,1752669076378,-460.0,0.00022054,2]
[372520876,1752669076388,-2997.62,0.00022054,2]
[372520877,1752669076398,-3103.31,0.00022054,2]
[372520878,1752669076408,-1049.96,0.00022054,2]
[372520879,1752669076418,-750.09,0.00022054,2]
[372520880,1752669076429,-460.0,0.00022054,2]
[372520881,1752669076439,-1950.53,0.00022054,2]
[372520882,1752669076449,-2684.67,0.00022054,2]
[372520883,1752669076459,-248.05186195,0.00022054,2]
[372520884,1752669076470,-460.0,0.00022054,2]
[372520885,1752669076480,-460.0,0.00022054,2]
[372520886,1752669076490,-520.0,0.00022054,2]
[372520887,1752669076500,-1112.76,0.00022054,2]
[372520888,1752669076510,-460.0,0.00022054,2]
[372520889,1752669076520,-2928.66,0.00022054,2]
[372520890,1752669076530,-460.0,0.00022054,2]
[372520891,1752669076540,-2786.66,0.00022054,2]
[372520892,1752669076551,-574.92988316,0.00022054,2]
[372520893,1752669076561,-153.189224,0.00022054,2]
[372520894,1752669076571,-460.0,0.00022054,2]
[372520895,1752669076582,-2653.91,0.00022054,2]
[372520896,1752669076592,-539.09,0.00022054,2]
[372520897,1752669076603,-5150.31,0.00022054,2]
[372520898,1752669076614,-460.0,0.00022054,2]
[372520899,1752669076624,-460.0,0.00022054,2]
[372520900,1752669076635,-605.84,0.00022054,2]
[372520901,1752669076645,-460.0,0.00022054,2]
[372520902,1752669076655,-460.0,0.00022054,2]
[372520903,1752669076665,-1047.5,0.00022054,2]
[372520904,1752669076675,-460.0,0.00022054,2]
[372520905,1752669076685,-460.0,0.00022054,2]
[372520906,1752669076695,-460.0,0.00022054,2]
[372520907,1752669076705,-976.04,0.00022054,2]
[372520908,1752669076715,-155.658052,0.00022054,2]
[372520909,1752669076727,-460.0,0.00022054,2]
[372520910,1752669076737,-865.38,0.00022054,2]
[372520911,1752669076747,-460.0,0.00022054,2]
[372520912,1752669076757,-3961.26,0.00022054,2]
[372520913,1752669076767,-2143.03,0.00022054,2]
[372520914,1752669076777,-538.94,0.00022054,2]
[372520915,1752669076787,-557.77,0.00022054,2]
[372520916,1752669076797,-1615.13,0.00022054,2]
[372520917,1752669076807,-530.82,0.00022054,2]
[372520918,1752669076817,-460.0,0.00022054,2]
[372520919,1752669076827,-6965.9,0.00022054,2]
[372520920,1752669076837,-460.0,0.00022054,2]
[372520921,1752669076846,-709.65,0.00022054,2]
[372520922,1752669076856,-2295.73,0.00022054,2]
[372520923,1752669076866,-429.98693188,0.00022054,2]
[372520924,1752669076876,-1153.2,0.00022054,2]
[372520925,1752669076886,-783.19,0.00022054,2]
[372520926,1752669076896,-3144.9,0.00022054,2]
[372520927,1752669076906,-460.0,0.00022054,2]
[372520928,1752669076916,-2872.81,0.00022054,2]
[372520929,1752669076926,-460.0,0.00022054,2]
[372520930,1752669076935,-3068.3,0.00022054,2]
[372520931,1752669076945,-4535.4,0.00022054,2]
[372520932,1752669076954,-700.24,0.00022054,2]
[372520933,1752669076964,-694.21,0.00022054,2]
[372520934,1752669076976,-9915.4,0.00022054,2]
[372520935,1752669076986,-540.38,0.00022054,2]
[372520936,1752669076996,-460.0,0.00022054,2]
[372520937,1752669077006,-756.18,0.00022054,2]
[372520938,1752669077016,-460.0,0.00022054,2]
[372520939,1752669077026,-758.42,0.00022054,2]
[372520940,1752669077035,-1962.85,0.00022054,2]
[372520941,1752669077044,-581.89,0.00022054,2]
[372520942,1752669077054,-460.0,0.00022054,2]
[372520943,1752669077064,-914.49,0.00022054,2]
[372520944,1752669077073,-885.98,0.00022054,2]
[372520945,1752669077087,-49383.49,0.00022054,2]
[372520946,1752669077097,-2100.22,0.00022054,2]
[372520947,1752669077107,-3674.47,0.00022054,2]
[372520948,1752669077117,-460.0,0.00022054,2]
[372520949,1752669077127,-460.0,0.00022054,2]
[372520950,1752669077137,-1569.04,0.00022054,2]
[372520951,1752669077147,-460.0,0.00022054,2]
[372520952,1752669077157,-576.99,0.00022054,2]
[372520953,1752669077166,-4865.0,0.00022054,2]
[372520954,1752669077176,-460.0,0.00022054,2]
[372520955,1752669077185,-460.0,0.00022054,2]
[372520956,1752669077195,-460.0,0.00022054,2]
[372520957,1752669077206,-1312.79,0.00022054,2]
[372520958,1752669077219,-6543.89,0.00022054,2]
[372520959,1752669077229,-460.0,0.00022054,2]
[372520960,1752669077239,-2016.88,0.00022054,2]
[372520961,1752669077250,-2561.27,0.00022054,2]
[372520962,1752669077260,-460.0,0.00022054,2]
[372520963,1752669077270,-474.75,0.00022054,2]
[372520964,1752669077281,-1279.32,0.00022054,2]
[372520965,1752669077291,-460.0,0.00022054,2]
[372520966,1752669077301,-460.0,0.00022054,2]
[372520967,1752669077312,-4549.0,0.00022054,2]
[372520968,1752669077322,-8497.92,0.00022054,2]
[372520969,1752669077332,-1292.92,0.00022054,2]
[372520970,1752669077342,-460.0,0.00022054,2]
[372520971,1752669077352,-460.0,0.00022054,2]
[372520972,1752669077362,-460.0,0.00022054,2]
[372520973,1752669077372,-2166.94,0.00022054,2]
[372520974,1752669077382,-1774.99,0.00022054,2]
[372520975,1752669077392,-2010.47,0.00022054,2]
[372520976,1752669077402,-513.92,0.00022054,2]
[372520977,1752669077412,-460.0,0.00022054,2]
[372520978,1752669077423,-2419.68,0.00022054,2]
[372520979,1752669077433,-684.93,0.00022054,2]
[372520980,1752669077444,-460.0,0.00022054,2]
[372520981,1752669077454,-1648.94,0.00022054,2]
[372520982,1752669077464,-683.0,0.00022054,2]
[372520983,1752669077477,-1327.86,0.00022054,2]
[372520984,1752669077487,-236.53831664,0.00022054,2]
[372520985,1752669077497,-637.1,0.00022054,2]
[372520986,1752669077507,-460.0,0.00022054,2]
[372520987,1752669077515,-460.0,0.00022054,2]
[372520988,1752669077525,-1193.78,0.00022054,2]
[372520989,1752669077534,-460.0,0.00022054,2]
[372520990,1752669077544,-642.61,0.00022054,2]
[372520991,1752669077554,-2200.42,0.00022054,2]
[372520992,1752669077563,-2639.72,0.00022054,2]
[372520993,1752669077573,-963.25,0.00022054,2]
[372520994,1752669077583,-1059.01,0.00022054,2]
[372520995,1752669077592,-5103.13,0.00022054,2]
[372520996,1752669077602,-6356.71,0.00022054,2]
[372520997,1752669077613,-460.0,0.00022054,2]
[372520998,1752669077623,-2273.1,0.00022054,2]
[372520999,1752669077634,-460.0,0.00022054,2]
[372521000,1752669077645,-1301.29,0.00022054,2]
[372521001,1752669077655,-1823.42,0.00022054,2]
[372521002,1752669077666,-533.56711352,0.00022054,2]
[372521003,1752669077677,-460.0,0.00022054,2]
[372521004,1752669077687,-507.84,0.00022054,2]
[372521005,1752669077697,-460.0,0.00022054,2]
[372521006,1752669077708,-635.7,0.00022054,2]
[372521007,1752669077721,-3255.1,0.00022054,2]
[372521008,1752669077739,-460.0,0.00022054,2]
[372521009,1752669077750,-460.0,0.00022054,2]
[372521010,1752669077760,-5108.59,0.00022054,2]
[372521011,1752669077771,-783.36,0.00022054,2]
[372521012,1752669077781,-3478.56,0.00022054,2]
[372521013,1752669077791,-2766.28,0.00022054,2]
[372521014,1752669077801,-1752.6,0.00022054,2]
[372521015,1752669077811,-460.0,0.00022054,2]
[372521016,1752669077821,-3652.15,0.00022054,2]
[372521017,1752669077830,-460.0,0.00022054,2]
[372521018,1752669078041,-460.0,0.00022054,2]
[372521019,1752669078065,-460.0,0.00022054,2]
[372521020,1752669078075,-2983.25,0.00022054,2]
[372521021,1752669078085,-602.23,0.00022054,2]
[372521022,1752669078095,-460.0,0.00022054,2]
[372521023,1752669078105,-1074.13,0.00022054,2]
[372521024,1752669078115,-306.8605452,0.00022054,2]
[372521025,1752669078125,-460.0,0.00022054,2]
[372521026,1752669078135,-2365.91,0.00022054,2]
[372521027,1752669078146,-874.12,0.00022054,2]
[372521028,1752669078156,-599.2,0.00022054,2]
[372521029,1752669078166,-460.0,0.00022054,2]
[372521030,1752669078176,-460.0,0.00022054,2]
[372521031,1752669078185,-896.59,0.00022054,2]
[372521032,1752669078195,-790.82,0.00022054,2]
[372521033,1752669078208,-558.31414049,0.00022054,2]
[372521034,1752669078220,-460.0,0.00022054,2]
[372521035,1752669078230,-975.03,0.00022054,2]
[372521036,1752669078240,-704.32,0.00022054,2]
[372521037,1752669078251,-1673.03,0.00022054,2]
[372521038,1752669078261,-500.0,0.00022054,2]
[372521039,1752669078271,-5451.9,0.00022054,2]
[372521040,1752669078282,-460.0,0.00022054,2]
[372521041,1752669078292,-1742.86,0.00022054,2]
[372521042,1752669078302,-523.24,0.00022054,2]
[372521043,1752669078312,-523.28,0.00022054,2]
[372521044,1752669078322,-1364.56,0.00022054,2]
[372521045,1752669078332,-10817.76,0.00022054,2]
[372521046,1752669078342,-9877.71,0.00022054,2]
[372521047,1752669078352,-1045.87,0.00022054,2]
[372521048,1752669078362,-898.43,0.00022054,2]
[372521049,1752669078373,-3088.46,0.00022054,2]
[372521050,1752669078383,-600.43,0.00022054,2]
[372521051,1752669078393,-460.0,0.00022054,2]
[372521052,1752669078403,-700.0,0.00022054,8]
[372521053,1752669078412,-700.0,0.00022054,8]
[372521054,1752669078422,-700.0,0.00022054,8]
[372521055,1752669078432,-700.0,0.00022054,8]
[372521056,1752669078442,-700.0,0.00022054,8]
[372521057,1752669078452,-741.90659589,0.00022054,8]
[372521058,1752669078462,-700.0,0.00022054,8]
[372521059,1752669078473,-700.0,0.00022054,8]
[372521060,1752669078484,-700.0,0.00022054,8]
[372521061,1752669078494,-700.0,0.00022054,8]
[372521062,1752669078503,-700.0,0.00022054,8]
[372521063,1752669078513,-700.0,0.00022054,8]
[372521064,1752669078523,-700.0,0.00022054,8]
[372521065,1752669078533,-700.0,0.00022054,8]
[372521066,1752669078544,-700.0,0.00022054,8]
[372521067,1752669078554,-700.0,0.00022054,8]
[372521068,1752669078564,-846.88358948,0.0002206,2]
[372521069,1752669078574,-500.0,0.00022073,2]
[372521070,1752669078584,-160.58599688,0.00022073,2]
[372521071,1752669078594,-500.0,0.00022073,2]
[372521072,1752669078603,-500.0,0.00022073,2]
[372521073,1752669078612,-500.0,0.00022073,2]
[372521074,1752669078622,-806.272,0.00022073,2]
[372521075,1752669078632,-575.594,0.00022073,2]
[372521076,1752669078642,-955.37,0.00022073,2]
[372521077,1752669078653,-3349.0,0.00022073,2]
[372521078,1752669078663,-153.0,0.00022073,2]
[372521079,1752669078673,-7405.04926435,0.0002208,2]
[372521080,1752669078683,-1784.6991829,0.00022091,2]
[372521081,1752669078693,-846.88358948,0.00022091,2]
[372521082,1752669078703,-1168.39817235,0.00022091,2]
[372521083,1752669078713,-1324.00257124,0.00022091,2]
[372521084,1752669078724,-166.75489778,0.00022091,4]
[372521085,1752669078734,-500.0,0.00022099,2]
[372521086,1752669078744,-500.0,0.00022099,2]
[372521087,1752669078755,-600.28,0.00022099,2]
[372521088,1752669078765,-600.28,0.00022099,2]
[372521089,1752669078774,-522.89,0.00022099,2]
[372521090,1752669078784,-522.89,0.00022099,2]
[372521091,1752669078794,-693.9,0.00022099,2]
[372521092,1752669078805,-693.9,0.00022099,2]
[372521093,1752669078814,-1345.9,0.00022099,2]
[372521094,1752669078824,-1345.9,0.00022099,2]
[372521095,1752669078834,-824.37,0.00022099,2]
[372521096,1752669078843,-824.37,0.00022099,2]
[372521097,1752669078853,-500.0,0.00022099,2]
[372521098,1752669078863,-500.0,0.00022099,2]
[372521099,1752669078873,-1953.19,0.00022099,2]
[372521100,1752669078883,-1953.19,0.00022099,2]
[372521101,1752669079100,-849.15,0.00022099,2]
[372521102,1752669079111,-849.15,0.00022099,2]
[372521103,1752669079121,-150.0,0.00022099,2]
[372521104,1752669079131,-586.5,0.00022099,2]
[372521105,1752669079141,-586.5,0.00022099,2]
[372521106,1752669079150,-428807.17920711,0.000221,7]
[372521107,1752669079919,-14939.07650012,0.000221,7]
[372521108,1752669081737,-185.62904498,0.00017815,2]
[372521109,1752669081919,-607.34180402,0.00017815,2]
[372521110,1752669081929,-595.99688599,0.00020689,2]
[372521111,1752669081939,-449.12672069,0.00020689,2]
[372521112,1752669081948,-593.53347149,0.00020689,2]
[372521113,1752669081958,-593.53347149,0.00020689,2]
[372521114,1752669081967,-306.96733569,0.00020689,2]
[372521115,1752669081979,-593.53347149,0.00020689,2]
[372521116,1752669081989,-29.38636371,0.00020689,2]
[372521117,1752669082026,-564.14710778,0.00020689,2]
[372521118,1752669082036,-61.0887437,0.00020689,2]
[372521119,1752669082048,-532.44472779,0.00020689,2]
[372521120,1752669082058,-54.55527221,0.00020689,2]
[372521121,1752669082115,-538.97819928,0.00020689,2]
[372521122,1752669082125,-593.53347149,0.00020689,2]
[372521123,1752669082134,-593.53347149,0.00020689,2]
[372521124,1752669082144,-69.8847409,0.00020689,2]
[372521125,1752669082172,-523.64873059,0.00020689,2]
[372521126,1752669082183,-593.53347149,0.00020689,2]
[372521127,1752669082194,-593.53347149,0.00020689,2]
[372521128,1752669082205,-593.53347149,0.00020689,2]
[372521129,1752669082218,-593.53347149,0.00020689,2]
[372521130,1752669082230,-593.53347149,0.00020689,2]
[372521131,1752669082239,-593.53347149,0.00020689,2]
[372521132,1752669082249,-593.53347149,0.00020689,2]
[372521133,1752669082260,-593.53347149,0.00020689,2]
[372521134,1752669082271,-593.53347149,0.00020689,2]
[372521135,1752669082282,-593.53347149,0.00020689,2]
[372521136,1752669082294,-593.53347149,0.00020689,2]
[372521137,1752669082305,-593.53347149,0.00020689,2]
[372521138,1752669082315,-593.53347149,0.00020689,2]
[372521139,1752669082325,-593.53347149,0.00020689,2]
[372521140,1752669082335,-593.53347149,0.00020689,2]
[372521141,1752669082345,-460.0,0.00021917,2]
[372521142,1752669082355,-460.0,0.00021917,2]
[372521143,1752669082365,-460.0,0.00021917,2]
[372521144,1752669082375,-460.0,0.00021917,2]
[372521145,1752669082385,-460.0,0.00021917,2]
[372521146,1752669082395,-663.77,0.00021917,2]
[372521147,1752669082406,-434.33362683,0.00021917,2]
[372521148,1752669082414,-60.1730246,0.00022054,2]
[372521149,1752669082426,-399.8269754,0.00022054,2]
[372521150,1752669082436,-336.55,0.00022054,2]
[372521151,1752669082446,-460.0,0.00022054,2]
[372521152,1752669082456,-460.0,0.00022054,2]
[372521153,1752669082466,-663.77,0.00022054,2]
[372521154,1752669082477,-3845.79640194,0.000221,7]
[372521155,1752669082489,-4317.50643071,0.000221,7]
[372521156,1752669082502,-6303.3721291,0.000221,7]
[372521157,1752669082643,-593.53347149,0.00020689,2]
[372521158,1752669082654,-593.53347149,0.00020689,2]
[372521159,1752669082664,-593.53347149,0.00020689,2]
[372521160,1752669082674,-593.53347149,0.00020689,2]
[372521161,1752669082684,-593.53347149,0.00020689,2]
[372521162,1752669082694,-5078.60902954,0.000221,7]
[372521163,1752669083864,-593.53347149,0.00020689,2]
[372521164,1752669083874,-199.43737751,0.00020689,2]
[372521165,1752669083893,-394.09609398,0.00020689,2]
[372521166,1752669083903,-593.53347149,0.00020689,2]
[372521167,1752669083912,-593.53347149,0.00020689,2]
[372521168,1752669083922,-593.53347149,0.00020689,2]
[372521169,1752669083932,-593.53347149,0.00020689,2]
[372521170,1752669083941,-593.53347149,0.00020689,2]
[372521171,1752669083951,-593.53347149,0.00020689,2]
[372521172,1752669083961,-593.53347149,0.00020689,2]
[372521173,1752669083972,-593.53347149,0.00020689,2]
[372521174,1752669083982,-593.53347149,0.00020689,2]
[372521175,1752669083991,-593.53347149,0.00020689,2]
[372521176,1752669084001,-593.53347149,0.00020689,2]
[372521177,1752669084010,-593.53347149,0.00020689,2]
[372521178,1752669084020,-593.53347149,0.00020689,2]
[372521179,1752669084029,-593.53347149,0.00020689,2]
[372521180,1752669084039,-593.53347149,0.00020689,2]
[372521181,1752669084048,-593.53347149,0.00020689,2]
[372521182,1752669084060,-593.53347149,0.00020689,2]
[372521183,1752669084070,-593.53347149,0.00020689,2]
[372521184,1752669084079,-593.53347149,0.00020689,2]
[372521185,1752669084089,-593.53347149,0.00020689,2]
[372521186,1752669084098,-593.53347149,0.00020689,2]
[372521187,1752669084106,-593.53347149,0.00020689,2]
[372521188,1752669084115,-593.53347149,0.00020689,2]
[372521189,1752669084124,-593.53347149,0.00020689,2]
[372521190,1752669084134,-593.53347149,0.00020689,2]
[372521191,1752669084143,-593.53347149,0.00020689,2]
[372521192,1752669084152,-593.53347149,0.00020689,2]
[372521193,1752669084162,-593.53347149,0.00020689,2]
[372521194,1752669084171,-593.53347149,0.00020689,2]
[372521195,1752669084182,-593.53347149,0.00020689,2]
[372521196,1752669084193,-593.53347149,0.00020689,2]
[372521197,1752669084203,-593.53347149,0.00020689,2]
[372521198,1752669084217,-593.53347149,0.00020689,2]
[372521199,1752669084228,-593.53347149,0.00020689,2]
[372521200,1752669084238,-151.0,0.00020889,2]
[372521201,1752669084247,-151.0,0.00021916,2]
[372521202,1752669084258,-151.0,0.00021916,2]
[372521203,1752669084268,-151.0,0.00021916,2]
[372521204,1752669084278,-460.0,0.00021917,2]
[372521205,1752669084289,-460.0,0.00021917,2]
[372521206,1752669084300,-460.0,0.00021917,2]
[372521207,1752669084310,-151.0,0.00021917,2]
[372521208,1752669084320,-246.78,0.00022054,2]
[372521209,1752669084330,-460.0,0.00022054,2]
[372521210,1752669084340,-7691.18030148,0.000221,7]
[372521211,1752669084350,-476.61752775,0.000221,7]
[372521212,1752669084359,-281.43217003,0.0002216,2]
[372521213,1752669084370,-500.0,0.00022173,2]
[372521214,1752669084380,-500.0,0.00022173,2]
[372521215,1752669084390,-4337.2131235,0.00022176,2]
[372521216,1752669084400,-150.0,0.00022189,2]
[372521217,1752669084409,-849.15,0.00022189,2]
[372521218,1752669084420,-586.5,0.00022189,2]
[372521219,1752669084429,-500.0,0.0002219,2]
[372521220,1752669084439,-500.0,0.0002219,2]
[372521221,1752669084449,-500.0,0.0002219,2]
[372521222,1752669084459,-500.0,0.0002219,2]
[372521223,1752669084470,-600.28,0.0002219,2]
[372521224,1752669084482,-600.28,0.0002219,2]
[372521225,1752669084493,-600.28,0.0002219,2]
[372521226,1752669084502,-600.28,0.0002219,2]
[372521227,1752669084512,-522.89,0.0002219,2]
[372521228,1752669084522,-522.89,0.0002219,2]
[372521229,1752669084532,-522.89,0.0002219,2]
[372521230,1752669084541,-522.89,0.0002219,2]
[372521231,1752669084552,-693.9,0.0002219,2]
[372521232,1752669084561,-693.9,0.0002219,2]
[372521233,1752669084571,-693.9,0.0002219,2]
[372521234,1752669084580,-693.9,0.0002219,2]
[372521235,1752669084590,-1345.9,0.0002219,2]
[372521236,1752669084599,-1345.9,0.0002219,2]
[372521237,1752669084608,-1345.9,0.0002219,2]
[372521238,1752669084618,-1345.9,0.0002219,2]
[372521239,1752669084628,-500.0,0.0002219,2]
[372521240,1752669084638,-500.0,0.0002219,2]
[372521241,1752669084648,-824.37,0.0002219,2]
[372521242,1752669084657,-824.37,0.0002219,2]
[372521243,1752669084666,-824.37,0.0002219,2]
[372521244,1752669084676,-824.37,0.0002219,2]
[372521245,1752669084685,-500.0,0.0002219,2]
[372521246,1752669084695,-500.0,0.0002219,2]
[372521247,1752669084705,-500.0,0.0002219,2]
[372521248,1752669084715,-500.0,0.0002219,2]
[372521249,1752669084726,-1953.19,0.0002219,2]
[372521250,1752669084736,-1953.19,0.0002219,2]
[372521251,1752669084745,-1953.19,0.0002219,2]
[372521252,1752669084755,-1953.19,0.0002219,2]
[372521253,1752669084764,-849.15,0.0002219,2]
[372521254,1752669084773,-849.15,0.0002219,2]
[372521255,1752669084783,-849.15,0.0002219,2]
[372521256,1752669084793,-150.0,0.0002219,2]
[372521257,1752669084801,-150.0,0.0002219,2]
[372521258,1752669084811,-586.5,0.0002219,2]
[372521259,1752669084822,-586.5,0.0002219,2]
[372521260,1752669084831,-586.5,0.0002219,2]
[372521261,1752669084841,-586.5,0.0002219,2]
[372521262,1752669084851,-586.5,0.0002219,2]
[372521263,1752669084860,-586.72180759,0.0002219,2]
[372521264,1752669084869,-666.0,0.0002219,2]
[372521265,1752669084879,-666.0,0.0002219,2]
[372521266,1752669084888,-300.0,0.0002219,2]
[372521267,1752669084898,-500.0,0.00022191,2]
[372521268,1752669084906,-500.0,0.00022191,2]
[372521269,1752669084915,-250.0,0.00022191,2]
[372521270,1752669084925,-500.0,0.00022191,2]
[372521271,1752669084934,-500.0,0.00022191,2]
[372521272,1752669084943,-500.0,0.00022191,2]
[372521273,1752669084952,-500.0,0.00022191,2]
[372521274,1752669084962,-500.0,0.00022191,2]
[372521275,1752669084971,-1231.0,0.00022191,2]
[372521276,1752669084982,-500.0,0.00022191,2]
[372521277,1752669084992,-500.0,0.00022191,2]
[372521278,1752669085002,-3415.0,0.00022191,2]
[372521279,1752669085011,-500.0,0.00022191,2]
[372521280,1752669085021,-653.98,0.00022191,2]
[372521281,1752669085030,-460.0,0.00022191,2]
[372521282,1752669085040,-460.0,0.00022191,2]
[372521283,1752669085049,-460.0,0.00022191,2]
[372521284,1752669085059,-460.0,0.00022191,2]
[372521285,1752669085068,-460.0,0.00022191,2]
[372521286,1752669085078,-1062.78,0.00022191,2]
[372521287,1752669085087,-1317.81043,0.00022191,2]
[372521288,1752669085097,-1549.659291,0.00022191,2]
[372521289,1752669085106,-1348.106181,0.00022191,2]
[372521290,1752669085115,-460.0,0.00022191,2]
[372521291,1752669085125,-460.0,0.00022191,2]
[372521292,1752669085134,-322.845686,0.00022191,2]
[372521293,1752669085145,-460.0,0.00022191,2]
[372521294,1752669085153,-460.0,0.00022191,2]
[372521295,1752669085162,-460.0,0.00022191,2]
[372521296,1752669085172,-461.33818166,0.00022191,2]
[372521297,1752669085183,-460.0,0.00022191,2]
[372521298,1752669085193,-460.0,0.00022191,2]
[372521299,1752669085203,-460.0,0.00022191,2]
[372521300,1752669085216,-460.0,0.00022191,2]
[372521301,1752669085228,-296.53341431,0.00022191,2]
[372521302,1752669085238,-460.0,0.00022191,2]
[372521303,1752669085248,-460.0,0.00022191,2]
[372521304,1752669085258,-460.0,0.00022191,2]
[372521305,1752669085267,-453.77548305,0.00022191,2]
[372521306,1752669085277,-535.71,0.00022191,2]
[372521307,1752669085287,-460.0,0.00022191,2]
[372521308,1752669085298,-460.0,0.00022191,2]
[372521309,1752669085308,-460.0,0.00022191,2]
[372521310,1752669085318,-460.0,0.00022191,2]
[372521311,1752669085328,-830.34,0.00022191,2]
[372521312,1752669085339,-460.0,0.00022191,2]
[372521313,1752669085348,-460.0,0.00022191,2]
[372521314,1752669085358,-460.0,0.00022191,2]
[372521315,1752669085368,-460.0,0.00022191,2]
[372521316,1752669085378,-305.66198743,0.00022191,2]
[372521317,1752669085389,-460.0,0.00022191,2]
[372521318,1752669085400,-460.0,0.00022191,2]
[372521319,1752669085410,-460.0,0.00022191,2]
[372521320,1752669085421,-460.0,0.00022191,2]
[372521321,1752669085432,-482.23,0.00022191,2]
[372521322,1752669085442,-460.0,0.00022191,2]
[372521323,1752669085453,-460.0,0.00022191,2]
[372521324,1752669085464,-460.0,0.00022191,2]
[372521325,1752669085476,-460.0,0.00022191,2]
[372521326,1752669085486,-460.0,0.00022191,2]
[372521327,1752669085497,-460.0,0.00022191,2]
[372521328,1752669085507,-855.05,0.00022191,2]
[372521329,1752669085518,-460.0,0.00022191,2]